Cogmind - Beta 14 @@@ ROGUE MODE // 2024.08.07 @ 15:58:02 Player: Rune Result: Destroyed by S-10 Pest with Light Assault Rifle Performance ------------- Evolutions (1) 500 Regions Visited (2) 400 Robots Destroyed (23) 115 Value Destroyed (666) 666 Prototype IDs (0) 0 Alien Tech Used (0) 0 Bonus (0) 0 TOTAL SCORE: 1681 Bonus ------- None Cogmind --------- Core Integrity 0/400 Matter 450/450 Energy 100/100 System Corruption 0% Temperature Cool (0) Movement Core (400) Ox7 Location -9/Materials Parts ------- > --- POWER (2) -------- (None) > --- PROPULSION (2) --- (None) > --- UTILITY (2) ------ Large Storage Unit Large Matter Pod > --- WEAPON (3) ------- (None) > --- INVENTORY (15) --- Heat Sink Sensor Array Improved Targeting Computer Small Laser Peak State ------------ > --- POWER ------------ Ion Engine Light Ion Engine > --- PROPULSION ------- Aluminum Leg Improved Aluminum Leg > --- UTILITY ---------- Large Storage Unit Large Matter Pod > --- WEAPON ----------- Beam Rifle Beam Cannon Heavy Assault Rifle > --- INVENTORY -------- Compact Wheel Flight Unit Flight Unit Flight Unit Heat Sink Sensor Array Improved Targeting Computer Small Laser Small Laser [Rating: 13] Favorites ----------- Power Ion Engine Engine Ion Engine Propulsion Aluminum Leg Leg Aluminum Leg Flight Unit Flight Unit Utility Large Storage Unit Storage Large Storage Unit Weapon Beam Cannon Energy Gun Small Laser Energy Cannon Beam Cannon Ballistic Gun Assault Rifle Build | -11 -10 -9 ------- Run | Yrd Mat Mat Slots Evolved 2 | . . 2 Power 1 | . . 1 Propulsion . | . . . Utility . | . . . Weapon 1 | . . 1 Parts Attached 26 | 5 7 14 Power 5 | 1 . 4 Engine 5 | 1 . 4 Core . | . . . Reactor . | . . . Propulsion 8 | 2 2 4 Treads . | . . . Leg 6 | 2 2 2 Wheel . | . . . Hover . | . . . Flight 2 | . . 2 Utility 2 | . 2 . Device . | . . . Storage 2 | . 2 . Processor . | . . . Hackware . | . . . Protection . | . . . Artifact . | . . . Weapon 11 | 2 3 6 Energy Gun 6 | 1 1 4 Energy Cannon 1 | . 1 . Ballistic Gun 4 | 1 1 2 Ballistic Cannon . | . . . Launcher . | . . . Special Weapon . | . . . Impact Weapon . | . . . Slashing Weapon . | . . . Piercing Weapon . | . . . Special Melee Weapon . | . . . Unidentified Prototypes . | . . . Parts Lost 14 | . 2 12 Power 3 | . . 3 Propulsion 4 | . 1 3 Utility . | . . . Weapon 7 | . 1 6 Highest Loss Streak 10 | . 1 10 To Critical Strikes . | . . . Average Slot Usage (%) 92 | . 89 94 Engine 17 | . 14 19 Leg 17 | . 27 12 Flight 4 | . . 7 Storage 21 | . 19 22 Energy Gun 10 | . 9 10 Energy Cannon 8 | . 3 10 Ballistic Gun 11 | . 14 10 Peak Build Rating 13 | 5 7 13 Average Rating 8 | 3 6 10 On Entrance 4 | . 5 7 Naked Turns . | . . . Heaviest Build 40 | 8 33 40 Greatest Support 23 | 20 20 23 Greatest Overweight (x) 9 | . 2 9 Average Overweight (x) 1 | . . 2 Largest Inventory Capacity 15 | 5 15 15 Average Capacity 14 | 5 14 15 Most Carried 11 | 5 7 11 Average Carried 5 | 1 3 6 Final Capacity 15 | 5 15 15 Final Carried 7 | 1 7 4 Class Distribution -------------------- 47% | Scavenger-Gunner 42% | Mutant 10% | Gunner Dominant Class ---------------- Mutant | -10/Materials Scavenger-Gunner | -9/Materials Resources | -11 -10 -9 ----------- Run | Yrd Mat Mat Matter Collected 831 | 212 333 286 Remotely . | . . . Salvage Created 896 | . 410 486 Parts 55 | . 21 34 Haulers Intercepted . | . . . Recyclers Shooed 1 | . . 1 Parts Field Recycled . | . . . Retrieved Matter . | . . . Parts Self-Destructed . | . . . Prevented . | . . . Kills | -11 -10 -9 ------- Run | Yrd Mat Mat Combat Hostiles Destroyed 19 | . 8 11 Guns 15 | . 8 7 Cannons 4 | . . 4 Classes Destroyed 7 | . 2 5 Builder 1 | . . 1 Recycler 2 | . 1 1 Watcher 1 | . . 1 Swarmer 3 | . . 3 Grunt 12 | . 8 4 Duelist 1 | . . 1 Sentry 3 | . . 3 Best Kill Streak 3 | . 3 3 Combat Bots Only 3 | . 3 3 Max Kills in Single Turn 1 | . 1 1 Gunslinging . | . . . Exploded . | . . . Melee . | . . . Uniques/NPCs Destroyed . | . . . Combat | -11 -10 -9 -------- Run | Yrd Mat Mat Hostile Shots Fired 281 | . 68 213 Missed 83 | . 16 67 Damage Taken 2102 | . 632 1470 Core 543 | . 140 403 Absorbed by Shields . | . . . Core Remaining (%) 72 | 100 44 . Volleys Fired 77 | . 38 39 Largest 3 | . 2 3 Hottest 139 | . 80 139 Shots Fired 177 | . 72 105 Gun 145 | . 70 75 Cannon 32 | . 2 30 Launcher . | . . . Special . | . . . Kinetic 74 | . 38 36 Thermal 103 | . 34 69 Explosive . | . . . Electromagnetic . | . . . Robot Hit Streak 11 | . 11 8 Robot Miss Streak 5 | . 2 5 Penetration Max . | . . . Secondary Targets 1 | . 1 . Max Gunslinging Chain 1 | . 1 . Shots Hit Robots 102 | . 52 50 Core Hits 41 | . 20 21 Critical Kills . | . . . Critical Parts Destroyed . | . . . Critical Strikes . | . . . Melee Attacks . | . . . Impact . | . . . Slashing . | . . . Piercing . | . . . Sneak Attacks . | . . . Combat Hostiles . | . . . Follow-up Attacks . | . . . Damage Inflicted 1409 | . 660 749 Guns 1146 | . 642 504 Cannons 262 | . 18 244 Explosions . | . . . Melee . | . . . Ramming 1 | . . 1 Kinetic 579 | . 348 231 Thermal 829 | . 312 517 Explosive . | . . . Electromagnetic . | . . . Impact . | . . . Slashing . | . . . Piercing . | . . . Highest Corruption . | . . . Average Corruption . | . . . Corruption Purged . | . . . Corruption Blocked . | . . . Overload Shots . | . . . Overflow Damage . | . . . Projectiles . | . . . Explosions . | . . . Melee . | . . . Knockbacks . | . . . Impact . | . . . Kinetic . | . . . Secondary . | . . . Self-Inflicted Damage . | . . . Shots . | . . . Rammed . | . . . Targets Rammed 1 | . . 1 Kicked 1 | . . 1 Crushed . | . . . Highest Temperature 372 | . 90 372 Average Temperature 91 | . 37 116 Received Heat Transfer 690 | . 348 342 Effects 3 | . . 3 Energy Bleed 1 | . . 1 Matter Decay 1 | . . 1 Short Circuit 1 | . . 1 Siege Activations . | . . . Robots Corrupted . | . . . Combat Hostiles . | . . . Parts Fried . | . . . Impact Corruptions . | . . . Robots Melted . | . . . Combat Hostiles . | . . . Parts Melted 4 | . . 4 Heat Transferred 1899 | . 712 1187 Parts Sabotaged . | . . . Parts Stolen . | . . . Parts Stripped . | . . . Power Chain Reactions . | . . . Alert | -11 -10 -9 ------- Run | Yrd Mat Mat Peak Influence 215 | . 215 174 Initial 13 | . . 13 Average 58 | . 66 56 Maximum Alert Level 1 | . 1 . Low Security (%) 95 | 100 88 100 Level 1 4 | . 11 . Level 2 . | . . . Level 3 . | . . . Level 4 . | . . . Level 5 . | . . . High Security . | . . . Max Security . | . . . Squads Dispatched 3 | . 3 . Investigation 1 | . 1 . Extermination . | . . . Reinforcement 2 | . 2 . Assault . | . . . Garrison . | . . . Intercept . | . . . Searches Triggered . | . . . Construction Impeded . | . . . Haulers Reinforced . | . . . Active Scanning Responses . | . . . Cargo Convoy Interrupts . | . . . Stealth | -11 -10 -9 --------- Run | Yrd Mat Mat Distress Signals 4 | . . 4 Communications Jammed . | . . . Distress Signals . | . . . Times Spotted 34 | . 13 21 Peak Tracking Total 7 | . 4 7 Tactical Retreats 1 | . 1 . Traps | -11 -10 -9 ------- Run | Yrd Mat Mat Traps Triggered 1 | . 1 . Indirectly . | . . . Trap Hack Attempts . | . . . Triggered . | . . . Disarmed . | . . . Reprogrammed . | . . . Reused . | . . . Traps Extracted . | . . . Installed . | . . . Triggered . | . . . Machines | -11 -10 -9 ---------- Run | Yrd Mat Mat Machines Disabled 1 | . . 1 Max in Single Turn 1 | . . 1 Machines Repaired . | . . . Machines Dismantled . | . . . Machines Sabotaged . | . . . Overloaded Fab Kills . | . . . Hacking | -11 -10 -9 --------- Run | Yrd Mat Mat Machines Accessed 1 | . 1 . Terminals . | . . . Fabricators . | . . . Repair Stations . | . . . Recycling Units 1 | . 1 . Scanalyzers . | . . . Garrison Access . | . . . Total Hacks 1 | . 1 . Successful 1 | . 1 . Failed . | . . . Catastrophic . | . . . Database Lockouts . | . . . Manual . | . . . Terminals . | . . . Fabricators . | . . . Repair Stations . | . . . Recycling Units 1 | . 1 . Scanalyzers . | . . . Garrison Access . | . . . Terminal Hacks . | . . . Fabricator Hacks . | . . . Repair Station Hacks . | . . . Recycling Unit Hacks 1 | . 1 . Report Inventory 1 | . 1 . Scanalyzer . | . . . Garrison Access Hacks . | . . . Unauthorized Hacks . | . . . Terminals . | . . . Fabricators . | . . . Repair Stations . | . . . Recycling Units . | . . . Scanalyzers . | . . . Garrison Access . | . . . Data Cores Recovered . | . . . Used . | . . . Hacking Detections . | . . . Full Trace Events . | . . . Feedback Events . | . . . Feedback Blocked . | . . . Robot Schematics Acquired . | . . . Robots Built . | . . . Authchips . | . . . Time . | . . . Total Robot Build Rating . | . . . Part Schematics Acquired . | . . . Parts Built . | . . . Authchips . | . . . Time . | . . . Total Part Build Rating . | . . . Parts Repaired . | . . . Time . | . . . Parts Recycled . | . . . Recycled Matter . | . . . Retrieved Matter . | . . . Retrieved Components . | . . . Parts Scanalyzed . | . . . Part Schematics Acquired . | . . . Parts Damaged . | . . . Bothacking | -11 -10 -9 ------------ Run | Yrd Mat Mat Used RIF Installer . | . . . Robots Hacked . | . . . Non-combat . | . . . Combat . | . . . Robot Hacks Applied . | . . . Relay Couplers Released . | . . . Fabnet Peak Effective % . | . . . Robots Rewired . | . . . Allies Hacked . | . . . Hacks Repelled . | . . . Allies | -11 -10 -9 -------- Run | Yrd Mat Mat Total Allies . | . . . Largest Group . | . . . Highest-Rated Group . | . . . Highest-Rated Ally . | . . . Total Orders . | . . . Ally Attacks . | . . . Total Damage . | . . . Kills . | . . . Allies Corrupted . | . . . Allies Melted . | . . . Intel | -11 -10 -9 ------- Run | Yrd Mat Mat Robot Analysis Total . | . . . Derelict Logs Recovered . | . . . Drone Launches . | . . . Drone Recoveries . | . . . Exploration | -11 -10 -9 ------------- Run | Yrd Mat Mat Turns Passed 2011 | 54 752 1205 Spaces Moved 747 | 43 325 379 Core 17 | 13 . 4 Treads . | . . . Legs 623 | 30 325 268 Wheels . | . . . Hover . | . . . Flight 107 | . . 107 Fastest Speed 50 | 50 120 190 Average Speed 224 | 98 185 272 Slowest Speed 760 | 120 260 760 Overloaded Moves . | . . . Propulsion Burnouts . | . . . Robots Hopped . | . . . Cave-ins Triggered . | . . . Exploration Rate (%) 23 | 3 43 24 Regions Visited 2 Branch Regions . Pre-discovered Areas . | . . . Known Exits Taken . | . . . Unknown Exits Taken 2 | 1 1 . Scrap Searched . | . . . Spaces Dug . | . . . Terrain Destroyed . | . . . Melee . | . . . Projectile . | . . . AOE . | . . . Terrain Rammed . | . . . Walls Destroyed . | . . . Machines Disabled . | . . . Actions | -11 -10 -9 --------- Run | Yrd Mat Mat Total 933 | 55 402 476 Wait 35 | . 18 17 Move 745 | 42 324 379 Hop . | . . . Pick Up 34 | 7 12 15 Fast Attach . | . . . Attach 24 | 5 6 13 Detach 1 | . 1 . Swap 2 | . 1 1 Drop 14 | 1 2 11 Fire 77 | . 38 39 Melee . | . . . Ram . | . . . Kick 1 | . . 1 Crush . | . . . Escape Stasis . | . . . Rewire . | . . . Trap . | . . . Miscellaneous . | . . . Route ------- -11/Scrapyard -10/Materials -9/Materials (discovered 1 exit: [*Min]) History --------- Turn | Location | Event 9 | -11/Scrapyard | Discovered new exit (range 16) 55 | -11/Scrapyard | Entered Materials 313 | -10/Materials | Build established: Mutant 370 | -10/Materials | Core integrity fell below 50% 699 | -10/Materials | Discovered new exit (range 16) 807 | -10/Materials | Entered another Materials area 807 | -9/Materials | Evolved 2 slots: Power x1, Weapon x1 1316 | -9/Materials | Build established: Scavenger-Gunner 1877 | -9/Materials | Discovered new exit (range 15) 1973 | -9/Materials | Core integrity fell below 50% 1998 | -9/Materials | Core integrity fell below 20% 2012 | -9/Materials | Destroyed by S-10 Pest with Light Assault Rifle Last Messages --------------- Beam Rifle destroyed. K-01 Serf collects debris. R-06 Scavenger collects Flight Unit. K-01 Serf collects debris. R-06 Scavenger collects Heat Sink. Flight Unit melted. S-10 Pest destroyed. R-06 Scavenger collects Lgt. Assault Rifle. K-01 Serf collects debris. K-01 Serf cleans the Nuclear Reactor. R-06 Scavenger collects Lgt. Ion Engine. Sml. Laser destroyed. K-01 Serf collects debris. R-06 Scavenger collects Aluminum Leg. Beam Rifle destroyed. K-01 Serf collects debris. Hvy. Assault Rifle destroyed. Y-45 Defender destroyed. K-01 Serf collects debris. Acquired 36 matter. Map ----- +----------------------------------------------------+ | ?????????????????????????????????????????????????? | | ?????????????????????????????????????????????????? | | ?????????????????????????????????????????????????? | | ?????????????????????????????????????????????????? | | ?????????????????????????????????????????????????? | | ?????????????????????????????????????????????????? | | ?????????????????????????????????????????????????? | | ?????????????????????????????????????????????????? | | ?????????????????????????????????????????????????? | | ?????????????????????????????????????????????????? | | ???????????????????????? ?????????????????????? | | ???????????????????????" ?????????????????????? | | ??????????????????????? ?????????????????????? | | ??????????????????????? ?????????????????????? | | ???????????????????? ?"" ?????????????????????? | | ???????????????????? """ ?????????????????????? | | ?????????????????????""" #?????????????????????? | | ????????????????????? #?????????????????????? | | ?????????????????????? #?????????????????????? | | ?????????????????????? k #?????????????????????? | | ??????????????????????? % #?????????????????????? | | ??????????????????????? % +?????????????????????? | | ???????????????????????#% #?????????????????????? | | ????????????????????####% ##????????????????????? | | ????????????????????#"" g #????????????????????? | | ????????????????????#" s@= #????????????????????? | | ????????????????????#"| [! #????????????????????? | | ????????????????????#"" k #????????????????????? | | ??????????????? ??#"| #????????????????????? | | ??????????????# ??#" #????????????????????? | | ??????????????# ??#" " #????????????????????? | | ??????????????# #?#### ##????????????????????? | | ??????????????# #????# #?????????????????????? | | ??????????????# #????+ #?????????????????????? | | ??????????????# #????# #?????????????????????? | | ??????????????# #????# #?????????????????????? | | ??????????????# #????# #?????????????????????? | | ??????????????# #????# #?????????????????????? | | ??????????????# #????# r#?????????????????????? | | ?? ########## #????# #?????????????????????? | | ??? #???## ##????????????????????? | | ??? ##### #??????????????####### | | ??????? != #??????????????# | | ??????????????# %= #??????????????#""" "" | | ??????????###?# #??????????????#"R "" | | ??????????? # ##### #??????????????#""" "" | | ???????????? # #???#######??????????????# | | ????????????? + #????????????????????????# "" | | ????????????? # #????????????????????????# "" | | ???????????? # #????????????????????????# "" | +----------------------------------------------------+ Best States ------------- Heat Dissipation 28 Energy Generation 15 Energy Capacity 400 Matter Stores 450 Matter Capacity 450 Sight Range 16 Terrain Scan Density 10 Evasion (%) 55 Item Schematics ----------------- None Robot Schematics ------------------ None Fabricated ------------ Nothing Alien Tech Used ----------------- None Achievements -------------- None Challenges ------------ None Game ------ Seed ResetDisruptorCalibrator Manual? 0 Play Time 00:16:49 Cumulative 8.7 hours Start 2024.08.07 @ 15:43:34 End 2024.08.07 @ 15:58:02 Sessions 1 Manual Loads 0 Difficulty Rogue Special Mode None Game No. 26 Rogue 26 Adventurer 0 Explorer 0 Win Type - Total 0 Types 0/0/0/0/0/0/0/0/0 Lore% 1 Gallery% 12 Achievement% 10 Wizard Run 0 Options --------- Layout 1 ASCII 0 Keyboard 0 Movement Numpad Keybinds 0 Fullscreen 1 Font 32/SmallcapsGlow Map View 50x35 Zoom Use 0% Tactical HUD 0 Map Filters NONE Filters NONE Steam 1 RUN: a6794eff-d87a-4b5e-87f2-201005e541fe